Cogmind - Beta 13 @@@ ROGUE MODE // 2024.04.17 @ 01:23:40 Player: GregoriusTechneticies Result: Destroyed by G-34 Mercenary with Small Laser Performance ------------- Evolutions (1) 500 Regions Visited (2) 400 Robots Destroyed (65) 325 Value Destroyed (877) 877 Prototype IDs (0) 0 Alien Tech Used (0) 0 Bonus (0) 0 TOTAL SCORE: 2102 Bonus ------- None Cogmind --------- Core Integrity 0/400 Matter 228/300 Energy 125/125 System Corruption 0% Temperature Cool (6) Movement Rolling (80) Location -9/Materials Parts ------- > --- POWER (1) -------- Light Ion Engine > --- PROPULSION (2) --- Wheel Wheel > --- UTILITY (4) ------ Small Storage Unit Structural Scanner Visual Processing Unit Seismic Detector > --- WEAPON (2) ------- Light Cannon Light Cannon > --- INVENTORY (8) ---- Light Ion Engine Light Ion Engine Weight Redist. System Improved Signal Interpreter Improved Terrain Scanner Terrain Scan Processor Tractor Beam Hammer Peak State ------------ > --- POWER ------------ Ion Engine > --- PROPULSION ------- Wheel Wheel > --- UTILITY ---------- Small Storage Unit Structural Scanner Visual Processing Unit Seismic Detector > --- WEAPON ----------- Light Cannon Light Cannon > --- INVENTORY -------- Light Ion Engine Backup Power I Weight Redist. System Improved Signal Interpreter Improved Terrain Scanner Terrain Scan Processor Light Cannon Hammer [Rating: 11] Favorites ----------- Power Light Ion Engine Engine Light Ion Engine Propulsion Wheel Wheel Wheel Utility Small Storage Unit Device Seismic Detector Storage Small Storage Unit Processor Visual Processing Unit Weapon Light Cannon Energy Gun Small Laser Ballistic Gun Light Assault Rifle Ballistic Cannon Light Cannon Impact Weapon Hammer Build | -11 -10 -9 ------- Run | Yrd Mat Mat Slots Evolved 2 | . . 2 Power . | . . . Propulsion . | . . . Utility 2 | . . 2 Weapon . | . . . Parts Attached 41 | 9 12 20 Power 7 | 3 2 2 Engine 7 | 3 2 2 Core . | . . . Reactor . | . . . Propulsion 9 | 2 4 3 Treads . | . . . Leg . | . . . Wheel 9 | 2 4 3 Hover . | . . . Flight . | . . . Utility 10 | 2 3 5 Device 6 | 1 2 3 Storage 2 | 1 1 . Processor 2 | . . 2 Hackware . | . . . Protection . | . . . Artifact . | . . . Weapon 15 | 2 3 10 Energy Gun 2 | . . 2 Energy Cannon . | . . . Ballistic Gun 3 | 2 . 1 Ballistic Cannon 8 | . 2 6 Launcher . | . . . Special Weapon . | . . . Impact Weapon 2 | . 1 1 Slashing Weapon . | . . . Piercing Weapon . | . . . Special Melee Weapon . | . . . Unidentified Prototypes . | . . . Parts Lost 9 | . 3 6 Power 1 | . . 1 Propulsion 4 | . 3 1 Utility 1 | . . 1 Weapon 3 | . . 3 Highest Loss Streak 4 | . 2 4 To Critical Strikes . | . . . Average Slot Usage (%) 83 | . 98 74 Engine 9 | . 14 5 Wheel 13 | . 26 5 Device 18 | . 14 21 Storage 12 | . 14 11 Processor 6 | . . 10 Ballistic Cannon 21 | . 25 18 Naked Turns . | . . . Heaviest Build 18 | 11 15 18 Greatest Support 20 | 20 20 20 Greatest Overweight (x) 5 | . 4 5 Average Overweight (x) . | . . 2 Largest Inventory Capacity 8 | 8 8 8 Average Capacity 7 | 7 8 8 Most Carried 8 | 8 8 8 Average Carried 7 | 5 7 7 Final Capacity 8 | 8 8 8 Final Carried 8 | 8 8 8 Class Distribution -------------------- 59% | Mutant 40% | Scavenger-Mutant Dominant Class ---------------- Mutant | -10/Materials Mutant | -9/Materials Resources | -11 -10 -9 ----------- Run | Yrd Mat Mat Matter Collected 1535 | 398 553 584 Remotely . | . . . Salvage Created 1513 | 313 500 700 Parts 121 | 37 50 34 Haulers Intercepted 2 | . 2 . Recyclers Shooed 3 | 1 . 2 Parts Field Recycled . | . . . Retrieved Matter . | . . . Parts Self-Destructed . | . . . Prevented . | . . . Kills | -11 -10 -9 ------- Run | Yrd Mat Mat Combat Hostiles Destroyed 19 | . 6 13 Melee 2 | . . 2 Cannons 14 | . 6 8 Classes Destroyed 11 | 3 6 2 Worker 11 | 4 6 1 Builder 5 | . 3 2 Tunneler 15 | 9 4 2 Hauler 2 | . 2 . Recycler 6 | 1 2 3 Mechanic 1 | . . 1 Operator 1 | . 1 . Watcher 5 | . 2 3 Swarmer 6 | . 3 3 Grunt 11 | . 3 8 Sentry 2 | . . 2 Best Kill Streak 12 | 5 12 8 Combat Bots Only 5 | . 3 5 Max Kills in Single Turn 1 | 1 1 1 Gunslinging . | . . . Exploded . | . . . Melee 1 | . . 1 Uniques/NPCs Destroyed . | . . . Combat | -11 -10 -9 -------- Run | Yrd Mat Mat Hostile Shots Fired 174 | . 25 149 Missed 41 | . 5 36 Damage Taken 1469 | . 349 1120 Core 454 | . 50 404 Absorbed by Shields . | . . . Core Remaining (%) 90 | 100 80 . Volleys Fired 179 | 54 69 56 Largest 2 | 2 2 2 Hottest 70 | 40 70 70 Shots Fired 352 | 108 138 106 Gun 122 | 108 14 . Cannon 230 | . 124 106 Launcher . | . . . Special . | . . . Kinetic 352 | 108 138 106 Thermal . | . . . Explosive . | . . . Electromagnetic . | . . . Robot Hit Streak 9 | 8 9 8 Robot Miss Streak 7 | 4 5 7 Penetration Max . | . . . Secondary Targets . | . . . Shots Hit Robots 207 | 68 72 67 Core Hits 75 | 26 28 21 Critical Kills 1 | . . 1 Critical Parts Destroyed 2 | 1 . 1 Critical Strikes 11 | 1 5 5 Destroy 1 | 1 . . Blast 8 | . 5 3 Smash 2 | . . 2 Melee Attacks 22 | . 4 18 Impact 22 | . 4 18 Slashing . | . . . Piercing . | . . . Sneak Attacks 2 | . . 2 Combat Hostiles . | . . . Follow-up Attacks . | . . . Damage Inflicted 3021 | 571 1195 1255 Guns 647 | 571 76 . Cannons 2072 | . 1119 953 Explosions . | . . . Melee 302 | . . 302 Ramming . | . . . Kinetic 2719 | 571 1195 953 Thermal . | . . . Explosive . | . . . Electromagnetic . | . . . Impact 302 | . . 302 Slashing . | . . . Piercing . | . . . Highest Corruption 1 | . 1 . Average Corruption 1 | . 1 . Corruption Purged . | . . . Corruption Blocked . | . . . Effects 2 | . 2 . Message Errors 1 | . 1 . Parts Fused 1 | . 1 . Overload Shots . | . . . Overflow Damage 89 | . 21 68 Projectiles 27 | . 21 6 Explosions . | . . . Melee 62 | . . 62 Knockbacks 22 | . 8 14 Impact . | . . . Kinetic 19 | . 8 11 Secondary 3 | . . 3 Self-Inflicted Damage . | . . . Shots . | . . . Rammed . | . . . Targets Rammed . | . . . Kicked . | . . . Crushed . | . . . Highest Temperature 72 | . 72 35 Average Temperature 17 | . 18 13 Received Heat Transfer 432 | . 42 390 Siege Activations . | . . . Robots Corrupted . | . . . Combat Hostiles . | . . . Parts Fried 3 | . . 3 Impact Corruptions 5 | . . 5 Robots Melted . | . . . Combat Hostiles . | . . . Parts Melted . | . . . Heat Transferred . | . . . Parts Sabotaged . | . . . Parts Stolen . | . . . Parts Stripped . | . . . Power Chain Reactions . | . . . Alert | -11 -10 -9 ------- Run | Yrd Mat Mat Peak Influence 176 | 70 127 176 Initial 45 | . 45 41 Average 87 | 33 69 117 Maximum Alert Level . | . . . Low Security (%) 100 | 100 100 100 Level 1 . | . . . Level 2 . | . . . Level 3 . | . . . Level 4 . | . . . Level 5 . | . . . High Security . | . . . Max Security . | . . . Squads Dispatched 4 | . 2 2 Investigation 1 | . . 1 Extermination . | . . . Reinforcement 3 | . 2 1 Assault . | . . . Garrison . | . . . Intercept . | . . . Searches Triggered . | . . . Construction Impeded 1 | . . 1 Haulers Reinforced . | . . . Active Scanning Responses . | . . . Cargo Convoy Interrupts . | . . . Stealth | -11 -10 -9 --------- Run | Yrd Mat Mat Distress Signals 3 | . . 3 Communications Jammed . | . . . Distress Signals . | . . . Times Spotted 31 | . 10 21 Peak Tracking Total 7 | . 3 7 Tactical Retreats 2 | . . 2 Traps | -11 -10 -9 ------- Run | Yrd Mat Mat Traps Triggered 3 | . 2 1 Indirectly . | . . . Trap Hack Attempts . | . . . Triggered . | . . . Disarmed . | . . . Reprogrammed . | . . . Reused . | . . . Traps Extracted . | . . . Installed . | . . . Triggered . | . . . Machines | -11 -10 -9 ---------- Run | Yrd Mat Mat Machines Disabled 5 | . 2 3 Max in Single Turn 1 | . 1 1 Machines Repaired . | . . . Machines Dismantled . | . . . Machines Sabotaged . | . . . Overloaded Fab Kills . | . . . Hacking | -11 -10 -9 --------- Run | Yrd Mat Mat Machines Accessed 6 | . 6 . Terminals 6 | . 6 . Fabricators . | . . . Repair Stations . | . . . Recycling Units . | . . . Scanalyzers . | . . . Garrison Access . | . . . Total Hacks 21 | . 21 . Successful 8 | . 8 . Failed 13 | . 13 . Catastrophic 7 | . 7 . Database Lockouts . | . . . Manual 21 | . 21 . Terminals 21 | . 21 . Fabricators . | . . . Repair Stations . | . . . Recycling Units . | . . . Scanalyzers . | . . . Garrison Access . | . . . Terminal Hacks 3 | . 3 . Branch Access Points 1 | . 1 . Terminal Index 1 | . 1 . Unreport Threat 1 | . 1 . Fabricator Hacks . | . . . Repair Station Hacks . | . . . Recycling Unit Hacks . | . . . Scanalyzer . | . . . Garrison Access Hacks . | . . . Unauthorized Hacks 5 | . 5 . Terminals 5 | . 5 . Botnet 5 | . 5 . Fabricators . | . . . Repair Stations . | . . . Recycling Units . | . . . Scanalyzers . | . . . Garrison Access . | . . . Data Cores Recovered . | . . . Used . | . . . Hacking Detections 6 | . 6 . Full Trace Events 1 | . 1 . Feedback Events . | . . . Feedback Blocked . | . . . Robot Schematics Acquired . | . . . Robots Built . | . . . Authchips . | . . . Time . | . . . Total Robot Build Rating . | . . . Part Schematics Acquired . | . . . Parts Built . | . . . Authchips . | . . . Time . | . . . Total Part Build Rating . | . . . Parts Repaired . | . . . Time . | . . . Parts Recycled . | . . . Recycled Matter . | . . . Retrieved Matter . | . . . Retrieved Components . | . . . Parts Scanalyzed . | . . . Part Schematics Acquired . | . . . Parts Damaged . | . . . Bothacking | -11 -10 -9 ------------ Run | Yrd Mat Mat Used RIF Installer . | . . . Robots Hacked . | . . . Non-combat . | . . . Combat . | . . . Robot Hacks Applied . | . . . Relay Couplers Released . | . . . Fabnet Peak Effective % . | . . . Robots Rewired . | . . . Allies Hacked . | . . . Hacks Repelled . | . . . Allies | -11 -10 -9 -------- Run | Yrd Mat Mat Total Allies . | . . . Largest Group . | . . . Highest-Rated Group . | . . . Highest-Rated Ally . | . . . Total Orders . | . . . Ally Attacks . | . . . Total Damage . | . . . Kills . | . . . Allies Corrupted . | . . . Allies Melted . | . . . Intel | -11 -10 -9 ------- Run | Yrd Mat Mat Robot Analysis Total . | . . . Derelict Logs Recovered . | . . . Drone Launches . | . . . Drone Recoveries . | . . . Exploration | -11 -10 -9 ------------- Run | Yrd Mat Mat Turns Passed 2010 | 345 662 1003 Spaces Moved 1133 | 220 504 409 Core 218 | 3 4 211 Treads . | . . . Legs . | . . . Wheels 915 | 217 500 198 Hover . | . . . Flight . | . . . Fastest Speed 50 | 50 80 80 Average Speed 113 | 79 81 170 Slowest Speed 300 | 80 250 300 Overloaded Moves . | . . . Propulsion Burnouts . | . . . Robots Hopped . | . . . Cave-ins Triggered . | . . . Exploration Rate (%) 36 | 4 77 28 Regions Visited 2 Branch Regions . Pre-discovered Areas . | . . . Known Exits Taken . | . . . Unknown Exits Taken 2 | 1 1 . Scrap Searched . | . . . Spaces Dug 2 | . 2 . Terrain Destroyed 2 | . 2 . Melee 2 | . 2 . Projectile . | . . . AOE . | . . . Terrain Rammed . | . . . Walls Destroyed . | . . . Machines Disabled . | . . . Actions | -11 -10 -9 --------- Run | Yrd Mat Mat Total 1512 | 310 623 579 Wait 53 | . . 53 Move 1131 | 219 503 409 Hop . | . . . Pick Up 46 | 19 15 12 Fast Attach 11 | 4 2 5 Attach 12 | 3 2 7 Detach 1 | . . 1 Swap 18 | 2 8 8 Drop 39 | 9 20 10 Fire 179 | 54 69 56 Melee 22 | . 4 18 Ram . | . . . Kick . | . . . Crush . | . . . Escape Stasis . | . . . Rewire . | . . . Trap . | . . . Miscellaneous . | . . . Route ------- -11/Scrapyard -10/Materials (discovered 3 exits: [*Mat] / *Min x2) -9/Materials (discovered 1 exit: [*Min]) History --------- Turn | Location | Event 14 | -11/Scrapyard | Discovered new exit (range 14) 346 | -11/Scrapyard | Entered Materials 381 | -10/Materials | Build established: Mutant 548 | -10/Materials | Identified exit to Mines 990 | -10/Materials | Build established: Scavenger-Mutant 1006 | -10/Materials | Discovered new exit (range 3) 1008 | -10/Materials | Entered another Materials area 1008 | -9/Materials | Evolved 2 slots: Utility x2 1117 | -9/Materials | Lost 4 parts (1p1n2w) 1124 | -9/Materials | Core integrity fell below 50% 1367 | -9/Materials | Build established: Mutant 1639 | -9/Materials | Core integrity fell below 20% 1874 | -9/Materials | Build established: Scavenger-Mutant 2010 | -9/Materials | Discovered new exit (range 16) 2011 | -9/Materials | Destroyed by G-34 Mercenary with Small Laser Last Messages --------------- 01910_ Acquired 18 matter. 01927_ R-06 Scavenger knocked back. 01934_ R-06 Scavenger destroyed. 01941_ Dropped Lgt. Cannon. 01941_ Acquired Tractor Beam. 01942_ Acquired 78 matter. 01945_ Dropped Lgt. Ion Engine. 01945_ Acquired Lgt. Ion Engine. 01945_ K-01 Serf collects debris. 01946_ Dropped Backup Power I. 01946_ Acquired Lgt. Ion Engine. 01949_ K-01 Serf collects debris. 02001_ R-06 Scavenger collects Lgt. Treads. 02003_ K-01 Serf cleans the Pressure Siphon. 02004_ K-01 Serf collects debris. 02005_ R-06 Scavenger collects Beam Rifle. 02007_ K-01 Serf collects debris. 02009_ K-01 Serf cleans the Pressure Siphon. 02010_ EXIT=FOUND Map ----- +----------------------------------------------------+ | ?????????## % # ##??????????????????????? | | ?????????## ############????#########?????????? | | ########?## #############???############??????? | | ########?## #############???## #####??????? | | !!!!==##?## ## ##???## ??????? | | !!!==##?## ## ##???## ?????????? | | ! ##?## ## """ """ ##???## ??????????? | | ####### ## """ """ ##????# #?????###??? | | ####### ## """ """ ##????## ##?#######??? | | ## """ """ ##????## ##?#### ##??? | | ## """ """ ######## # ? ????? | | ## ######## # "" ????? | | ######## #########+## %% # """??????? | | ######### * ! ] % % # "????????? | | ######### ! * % *[ %%/%% ##?? | | ######### % *"""! """ =* #[ ##?? | | ### # """ "R" |%% %# ? ##?? | | ### """ # """k " " ###### ???? ##?? | | ###=""" # """ ###### ?????? ##?? | | ###!""" # ##???????????????? | | %%+%""" # !! ##???????????????? | | ### = " # ![ """ """ #####"???????????? | | ###= # ![ """ """ #####" ???????? | | #+########+# """ """ ??????? | | ## """ """k < ??????? | | " ## @ ??????? | | " ## gg ##### ????????? | | " ## ###########/###########????????? | | ## ###### ???####????????? | | " ## ##?????????"" ???????????????? | | " ## ##???????????""" ##???????????? | | " + ## ##????????????? ##???????????? | | ####### ##??????????????? ##???????????? | | ############# ##?????????????????????????????? | | ########????? ##?????????????????????????????? | | ?????????????? ##?????????????????????????????? | | ?????????????? ?????????????????????????????? | | ?????????????? ????????????????????????????? | | ?????????????? != ???????????????????????????? | | ???????????????? == ???????????????????????????? | | ???????????????????? ???????????????????????????? | | ?????????????????????????????????????????????????? | | ?????????????????????????????????????????????????? | | ?????????????????????????????????????????????????? | | ?????????????????????????????????????????????????? | | ?????????????????????????????????????????????????? | | ?????????????????????????????????????????????????? | | ?????????????????????????????????????????????????? | | ?????????????????????????????????????????????????? | | ?????????????????????????????????????????????????? | +----------------------------------------------------+ Best States ------------- Heat Dissipation 28 Energy Generation 10 Energy Capacity 250 Matter Stores 300 Matter Capacity 300 Sight Range 18 Terrain Scan Density 10 Evasion (%) 44 Item Schematics ----------------- None Robot Schematics ------------------ None Fabricated ------------ Nothing Alien Tech Used ----------------- None Achievements -------------- None Challenges ------------ None Game ------ Seed SkeletonTimingProtomatter Manual? 0 Play Time 00:26:27 Cumulative 33.9 hours Start 2024.04.17 @ 00:55:59 End 2024.04.17 @ 01:23:40 Sessions 1 Manual Loads 0 Difficulty Rogue Special Mode None Game No. 45 Rogue 30 Adventurer 0 Explorer 15 Win Type - Total 0 Types 0/0/0/0/0/0/0/0/0 Lore% 20 Gallery% 31 Achievement% 22 Wizard Run 0 Options --------- Layout 1 ASCII 0 Keyboard 0 Movement Mouse Keybinds 0 Fullscreen 1 Font 24/Smallcaps Map View 50x35 Zoom Use 0% Tactical HUD 1 Map Filters NONE Filters NONE Steam 1 RUN: 7ffe31f8-55bf-421e-9d5d-fbd478758040